bitfinex/quotes_SOLUSD_20250307
["timestamp","ask_amount","ask_price","bid_price","bid_amount"]
[1741360877814,51.16214172,146.16,146.15,0.033]
[1741360878008,51.16214172,146.17,146.15,0.033]
[1741360878211,20.0,146.19,146.15,0.033]
[1741360878413,20.0,146.19,146.15,0.17516157]
[1741360878602,9.2,146.22,146.15,0.17516157]
[1741360878914,51.16214172,146.21,146.15,51.33730329]
[1741360879210,51.16214172,146.16,146.15,0.033]
[1741360879614,1.28258636,146.21,146.15,0.033]
[1741360879916,51.16214172,146.17,146.15,0.033]
[1741360880110,51.16214172,146.16,146.15,0.033]
[1741360880498,20.0,146.19,146.15,0.033]
[1741360880809,51.16214172,146.18,146.15,0.033]
[1741360881023,34.86804493,146.36,146.15,0.033]
[1741360881313,51.16214172,146.24,146.19,0.14216157]
[1741360881496,20.0,146.23,146.19,0.14216157]
[1741360881694,71.16214172,146.23,146.19,0.14216157]
[1741360881894,51.16214172,146.23,146.18,51.16214172]
[1741360882104,51.16214172,146.24,146.19,0.14216157]
[1741360882293,148.0,146.26,146.19,0.14216157]
[1741360882294,51.16214172,146.23,146.19,0.14216157]
[1741360882494,51.16214172,146.24,146.19,0.14216157]
[1741360882690,51.16214172,146.21,146.16,0.14216157]
[1741360882904,51.16214172,146.2,146.16,0.14216157]
[1741360883109,51.16214172,146.2,146.15,0.033]
[1741360883110,51.16214172,146.19,146.15,0.033]
[1741360883491,51.16214172,146.17,146.15,0.033]
[1741360884010,51.16214172,146.16,146.15,0.033]
[1741360884312,102.32428344,146.16,146.15,0.033]
[1741360884512,51.16214172,146.16,146.15,0.033]
[1741360885013,51.16214172,146.17,146.15,0.033]
[1741360885487,6.5516,146.18,146.15,0.033]
[1741360885692,15.3229,146.24,146.18,0.14216157]
[1741360886001,15.3229,146.24,146.18,51.30430329]
[1741360886002,66.48504172,146.24,146.18,51.30430329]
[1741360886206,9.2,146.24,146.19,51.16214172]
[1741360886396,51.16214172,146.25,146.2,51.30430329]
[1741360887023,6.1229,146.28,146.2,0.14216157]
[1741360887317,51.16214172,146.22,146.19,0.14216157]
[1741360887525,51.16214172,146.23,146.19,0.14216157]
[1741360887895,51.16214172,146.22,146.17,0.14216157]
[1741360888094,51.16214172,146.22,146.17,51.30430329]
[1741360888421,71.16214172,146.23,146.17,51.30430329]
[1741360888622,51.16214172,146.21,146.15,0.033]
[1741360888821,51.16214172,146.21,146.15,51.19514172]
[1741360889121,71.16214172,146.23,146.18,0.14216157]
[1741360889309,51.16214172,146.22,146.18,0.14216157]
[1741360889704,51.16214172,146.22,146.17,0.14216157]
[1741360890023,20.0,146.23,146.19,0.14216157]
[1741360890315,199.16214172,146.26,146.21,0.14216157]
[1741360890505,51.16214172,146.24,146.21,0.14216157]
[1741360890812,51.16214172,146.23,146.21,0.14216157]
[1741360890999,199.16214172,146.26,146.2,51.16214172]
[1741360891201,148.0,146.26,146.21,51.30430329]
[1741360891400,51.16214172,146.25,146.21,0.14216157]
[1741360891608,51.16214172,146.24,146.19,0.14216157]
[1741360891804,51.16214172,146.22,146.19,0.14216157]
[1741360892017,20.0,146.23,146.19,0.14216157]
[1741360892215,51.16214172,146.21,146.16,0.14216157]
[1741360892416,51.16214172,146.21,146.15,51.19514172]
[1741360892618,20.0,146.23,146.15,51.19514172]
[1741360892795,51.16214172,146.18,146.15,0.033]
[1741360892995,51.16214172,146.19,146.15,0.17516157]
[1741360893197,51.16214172,146.21,146.15,51.33730329]
[1741360893816,51.16214172,146.2,146.15,0.033]
[1741360894002,51.16214172,146.19,146.15,0.033]
[1741360894198,51.16214172,146.18,146.15,0.033]
[1741360894393,71.16214172,146.2,146.15,0.17516157]
[1741360894915,20.0,146.2,146.15,0.033]
[1741360895110,51.16214172,146.19,146.15,0.033]
[1741360895311,51.16214172,146.18,146.15,0.033]
[1741360896118,21.28292932,146.2,146.15,0.033]
[1741360896418,26.1419,146.19,146.15,0.033]
[1741360896724,51.16214172,146.16,146.15,0.033]
[1741360897605,103.60753025,146.16,146.15,0.033]
[1741360897811,112.80753025,146.16,146.15,0.033]
[1741360898023,9.2,146.16,146.15,0.033]
[1741360898319,60.36214172,146.16,146.15,0.033]
[1741360898537,112.80738787,146.16,146.15,0.033]
[1741360898728,113.09171101,146.16,146.15,0.033]
[1741360899024,112.80738787,146.16,146.15,0.033]
[1741360899406,134.78815987,146.16,146.15,0.033]
[1741360899609,134.78815987,146.16,145.98,20.53988031]
[1741360899610,20.0,146.12,146.03,0.033]
[1741360899819,51.16214172,146.07,146.03,0.033]
[1741360900124,51.16214172,146.08,146.03,0.17516157]
[1741360900301,51.16214172,146.08,146.03,0.033]
[1741360900701,9.2,146.11,146.05,0.14216157]
[1741360900923,51.16214172,146.1,146.05,0.14216157]
[1741360901129,168.14,146.12,146.05,51.30430329]
[1741360901321,51.16214172,146.1,146.05,0.14216157]
[1741360901526,51.16214172,146.09,146.05,0.14216157]
[1741360901909,51.16214172,146.09,146.04,0.14216157]
[1741360902117,51.16214172,146.1,146.04,51.30430329]
[1741360902425,51.16214172,146.09,146.04,51.30430329]
[1741360902631,51.16214172,146.09,146.04,0.14216157]
[1741360902818,51.16214172,146.1,146.04,51.30430329]
[1741360903124,51.16214172,146.1,146.06,0.14216157]
[1741360903340,51.16214172,146.08,146.06,0.14216157]
[1741360903903,51.16214172,146.08,146.03,0.17516157]
[1741360904329,51.16214172,146.09,146.03,51.33730329]
[1741360904531,168.14,146.12,146.05,0.14216157]
[1741360904714,51.16214172,146.1,146.05,0.14216157]
[1741360905437,51.16214172,146.09,146.04,0.14216157]
[1741360906430,199.30214172,146.12,146.07,0.14216157]
[1741360906823,51.16214172,146.11,146.07,0.14216157]
[1741360907328,148.14,146.12,146.06,51.30430329]
[1741360907533,148.14,146.12,146.08,51.16214172]
[1741360907733,15.3219,146.19,146.11,51.16214172]
[1741360907914,66.48404172,146.19,146.13,51.30430329]
[1741360908117,60.34214172,146.19,146.13,51.30430329]
[1741360908309,9.18,146.19,146.15,0.14216157]
[1741360908629,60.34214172,146.19,146.15,0.14216157]
[1741360908821,51.16214172,146.17,146.12,0.14216157]
[1741360909014,51.16214172,146.17,146.12,51.30430329]
[1741360909219,51.16214172,146.18,146.14,0.14216157]
[1741360909620,60.34214172,146.19,146.13,51.16214172]
[1741360909818,51.16214172,146.18,146.14,0.14216157]
[1741360910224,9.18,146.19,146.14,0.14216157]
[1741360910416,60.34214172,146.19,146.14,0.14216157]
[1741360910922,199.34214172,146.21,146.15,51.30430329]
[1741360911129,148.18,146.21,146.14,51.16214172]
[1741360911327,51.16214172,146.18,146.14,0.14216157]
[1741360911529,51.16214172,146.17,146.14,0.14216157]
[1741360911832,51.16214172,146.17,146.12,51.16214172]
[1741360911833,71.16214172,146.18,146.13,0.14216157]
[1741360912041,71.16214172,146.18,146.13,51.30430329]
[1741360912238,51.19214172,146.19,146.13,51.30430329]
[1741360912438,0.03,146.19,146.15,0.14216157]
[1741360912628,0.03,146.19,146.17,0.14216157]
[1741360912821,0.03,146.19,146.17,51.30430329]
[1741360913017,0.03,146.19,146.18,51.30430329]
[1741360913720,0.03,146.19,146.18,0.14216157]
[1741360914122,0.03,146.19,146.18,51.30430329]
[1741360914522,0.03,146.19,146.18,0.14216157]
[1741360915527,0.03,146.19,146.18,51.30430329]
[1741360916054,0.03,146.19,146.18,58.14510329]
[1741360916242,0.03,146.19,146.18,58.42942643]
[1741360916439,0.03,146.19,146.18,77.07907529]
[1741360916741,0.03,146.19,146.18,83.31907529]
[1741360916941,148.14,146.29,146.19,0.42648471]
[1741360916942,199.30214172,146.29,146.19,0.42648471]
[1741360917118,148.14,146.29,146.25,0.14216157]
[1741360918545,51.16214172,146.3,146.25,0.14216157]
[1741360919039,148.1,146.33,146.28,0.14216157]
[1741360919040,199.26214172,146.33,146.28,0.14216157]
[1741360919434,51.16214172,146.32,146.27,0.14216157]
[1741360920140,51.16214172,146.32,146.27,51.30430329]
[1741360920339,148.1,146.33,146.29,0.14216157]
[1741360920550,0.03,146.34,146.32,0.14216157]
[1741360921344,51.19214172,146.34,146.28,0.14216157]
[1741360921547,51.16214172,146.33,146.28,0.14216157]
[1741360921842,51.16214172,146.29,146.22,6.1273]
[1741360922040,51.16214172,146.28,146.23,51.16214172]
[1741360922245,51.16214172,146.28,146.24,0.14216157]
[1741360922446,60.34214172,146.29,146.23,51.16214172]
[1741360922657,29.18,146.32,146.24,0.14216157]
[1741360922949,29.18,146.32,146.28,0.14216157]
[1741360922950,63.29184631,146.32,146.28,0.14216157]
[1741360923156,9.18,146.32,146.28,0.14216157]
[1741360923362,43.29184631,146.32,146.27,0.14216157]
[1741360923732,34.11184631,146.31,146.27,0.14216157]
[1741360923928,34.11184631,146.3,146.25,34.11184631]
[1741360924147,34.11184631,146.29,146.24,34.11184631]
[1741360924347,34.11184631,146.29,146.25,0.14216157]
[1741360924546,34.11184631,146.3,146.24,34.11184631]
[1741360924957,34.11184631,146.29,146.25,0.14216157]
[1741360925142,29.18,146.32,146.25,34.25400788]
[1741360925341,29.18,146.32,146.22,12.9661]
[1741360925342,29.18,146.32,146.29,0.14216157]
[1741360925536,9.18,146.32,146.29,34.25400788]
[1741360925744,9.18,146.32,146.29,0.14216157]
[1741360926061,9.18,146.32,146.28,0.14216157]
[1741360926254,34.14184631,146.34,146.29,34.11184631]
[1741360926561,34.11184631,146.31,146.29,0.14216157]
[1741360926941,34.11184631,146.31,146.26,0.14216157]
[1741360927155,34.11184631,146.32,146.26,34.25400788]
[1741360927358,34.11184631,146.31,146.26,34.25400788]
[1741360927566,34.11184631,146.31,146.26,0.14216157]
[1741360927743,34.11184631,146.32,146.27,0.14216157]
[1741360928556,0.03,146.34,146.29,0.14216157]
[1741360928761,0.03,146.34,146.29,34.25400788]
[1741360928933,20.03,146.34,146.29,34.25400788]
[1741360929138,0.03,146.34,146.29,34.25400788]
[1741360929340,0.03,146.34,146.33,34.11184631]
[1741360929652,0.03,146.34,146.33,0.14216157]
[1741360930250,0.03,146.34,146.33,41.08780788]
[1741360930657,0.03,146.34,146.33,34.25400788]
[1741360931458,0.03,146.34,146.33,0.14216157]
[1741360932044,0.03,146.34,146.29,34.11184631]
[1741360932475,34.11184631,146.33,146.27,34.11184631]
[1741360932653,34.11184631,146.32,146.28,0.14216157]
[1741360932844,34.11184631,146.33,146.28,0.14216157]
[1741360933170,0.03,146.34,146.25,3.2211]
[1741360933171,34.11184631,146.31,146.25,37.33294631]
[1741360933544,0.03,146.34,146.29,0.14216157]
[1741360933742,34.11184631,146.33,146.28,0.14216157]
[1741360933948,54.11184631,146.32,146.26,34.11184631]
[1741360934164,1.31164442,146.34,146.25,37.33294631]
[1741360934165,34.11184631,146.31,146.25,37.33294631]
[1741360934363,20.0,146.32,146.28,34.25400788]
[1741360934548,20.0,146.32,146.25,3.2211]
[1741360934549,34.11184631,146.3,146.25,3.2211]
[1741360934740,34.11184631,146.29,146.22,6.291]
[1741360934945,20.0,146.32,146.17,140.60377718]
[1741360934946,34.11184631,146.26,146.2,34.11184631]
[1741360935148,34.11184631,146.27,146.22,0.14216157]
[1741360935362,9.16,146.28,146.25,34.11184631]
[1741360935671,148.0,146.3,146.28,0.14216157]
[1741360935961,9.16,146.33,146.3,0.14216157]
[1741360936166,43.27184631,146.33,146.3,0.14216157]
[1741360936543,34.11184631,146.31,146.23,142.0385]
[1741360936749,9.16,146.33,146.27,34.11184631]
[1741360936952,43.27184631,146.33,146.28,0.14216157]
[1741360937257,9.16,146.33,146.28,34.25400788]
[1741360937455,43.27184631,146.33,146.28,0.14216157]
[1741360937852,43.27184631,146.33,146.28,34.25400788]
[1741360937853,9.16,146.33,146.28,34.25400788]
[1741360938447,0.03,146.34,146.3,34.25400788]
[1741360938855,34.11184631,146.33,146.3,0.14216157]
[1741360939152,34.11184631,146.33,146.28,0.14216157]
[1741360939355,34.11184631,146.32,146.28,0.14216157]
[1741360939550,34.11184631,146.29,146.21,3.3039]
[1741360939754,34.11184631,146.28,146.23,34.11184631]
[1741360939979,34.11184631,146.29,146.24,0.14216157]
[1741360940668,34.11184631,146.28,146.22,34.11184631]
[1741360940870,34.11184631,146.27,146.21,37.41574631]
[1741360941277,34.11184631,146.28,146.22,34.11184631]
[1741360941474,9.16,146.29,146.23,0.14216157]
[1741360941782,34.11184631,146.28,146.22,34.11184631]
[1741360941986,34.11184631,146.28,146.23,0.14216157]
[1741360942359,34.11184631,146.26,146.21,3.3039]
[1741360942677,34.11184631,146.26,146.22,0.14216157]
[1741360942863,34.11184631,146.25,146.22,0.14216157]
[1741360943062,10.44204063,146.29,146.22,0.14216157]
[1741360943063,34.11184631,146.27,146.22,0.14216157]
[1741360943374,34.11184631,146.28,146.24,0.14216157]
[1741360943562,34.11184631,146.27,146.24,0.14216157]
[1741360943873,34.11184631,146.25,146.2,0.14216157]
[1741360944281,34.11184631,146.25,146.19,34.14484631]
[1741360944454,54.11184631,146.26,146.21,0.14216157]
[1741360944656,54.11184631,146.26,146.21,34.25400788]
[1741360945175,54.11184631,146.26,146.2,34.25400788]
[1741360945674,34.11184631,146.26,146.2,34.25400788]
[1741360945883,34.11184631,146.25,146.2,0.14216157]
[1741360946068,20.0,146.26,146.2,34.25400788]
[1741360946266,34.11184631,146.25,146.2,34.25400788]
[1741360946482,54.11184631,146.26,146.2,34.25400788]
[1741360947576,34.11184631,146.23,146.19,0.033]
[1741360948158,34.11184631,146.22,146.19,0.033]
[1741360948378,54.11184631,146.24,146.19,0.033]
[1741360948558,20.0,146.24,146.19,0.033]
[1741360948760,20.0,146.24,146.2,0.14216157]
[1741360948966,54.11184631,146.24,146.2,0.14216157]
[1741360949257,34.11184631,146.21,146.19,0.033]
[1741360949458,34.11184631,146.2,146.19,0.033]
[1741360949658,9.14,146.22,146.19,0.033]
[1741360949877,43.25184631,146.22,146.19,0.033]
[1741360950269,9.14,146.22,146.19,0.033]
[1741360950465,43.25184631,146.22,146.19,0.033]
[1741360951062,9.14,146.22,146.19,0.033]
[1741360952374,9.14,146.22,146.19,34.14484631]
[1741360952574,29.07200639,146.28,146.22,0.14216157]
[1741360952880,34.11184631,146.24,146.22,0.14216157]
[1741360953181,34.11184631,146.23,146.22,0.14216157]
[1741360953384,34.11184631,146.23,146.19,0.033]
[1741360953686,54.11184631,146.24,146.19,0.033]
[1741360954068,34.11184631,146.23,146.19,0.033]
[1741360954267,34.11184631,146.22,146.19,0.033]
[1741360954675,34.11184631,146.23,146.19,0.033]
[1741360955178,54.11184631,146.24,146.19,0.17516157]
[1741360956464,34.11184631,146.25,146.2,34.25400788]
[1741360956681,34.11184631,146.24,146.2,0.14216157]
[1741360956885,34.11184631,146.21,146.19,0.033]
[1741360957089,20.0,146.17,146.11,0.21324235]
[1741360957284,34.11184631,146.16,146.11,0.21324235]
[1741360957584,34.11184631,146.15,146.09,3.048]
[1741360957787,21.28309596,146.17,146.08,34.11184631]
[1741360957788,34.11184631,146.14,146.08,34.11184631]
[1741360957999,34.11184631,146.13,146.07,40.62524631]
[1741360958181,34.11184631,146.13,146.07,34.11184631]
[1741360958389,34.11184631,146.13,146.08,34.25400788]
[1741360958679,34.11184631,146.12,146.06,34.11184631]
[1741360958883,34.11184631,146.11,146.05,34.11184631]
[1741360959185,9.14,146.14,146.07,0.14216157]
[1741360959186,34.11184631,146.12,146.07,0.14216157]
[1741360960000,34.11184631,146.11,146.05,34.11184631]
[1741360960175,34.11184631,146.1,146.04,0.033]
[1741360960487,34.11184631,146.1,146.04,34.14484631]
[1741360960669,34.11184631,146.09,146.04,0.033]
[1741360960880,34.11184631,146.1,146.06,0.14216157]
[1741360961183,34.11184631,146.07,146.04,0.033]
[1741360961569,34.11184631,146.07,146.06,0.033]
[1741360962089,9.14,146.08,146.06,0.033]
[1741360962990,9.14,146.08,146.06,0.17516157]
[1741360963491,34.11184631,146.12,146.08,0.14216157]
[1741360963688,34.11184631,146.1,146.08,0.14216157]
[1741360963889,34.11184631,146.1,146.06,0.033]
[1741360964090,34.11184631,146.12,146.07,0.14216157]
[1741360964388,35.39550679,146.13,146.07,34.25400788]
[1741360964595,34.11184631,146.11,146.06,0.033]
[1741360964780,1.28366048,146.13,146.06,0.033]
[1741360964781,34.11184631,146.1,146.06,0.033]
[1741360965190,34.11184631,146.12,146.07,0.14216157]
[1741360965694,54.11184631,146.11,146.07,0.14216157]
[1741360966195,54.11184631,146.11,146.06,34.28700788]
[1741360966490,34.11184631,146.1,146.06,0.17516157]
[1741360966693,34.11184631,146.1,146.06,0.033]
[1741360967589,34.11184631,146.08,146.06,0.033]
[1741360968288,54.11184631,146.09,146.06,0.033]
[1741360968497,20.0,146.09,146.06,0.033]
[1741360968790,35.39566056,146.1,146.06,0.033]
[1741360968989,34.11184631,146.1,146.06,0.033]
[1741360969289,35.3955673,146.1,146.06,0.17516157]
[1741360969478,34.11184631,146.09,146.06,0.17516157]
[1741360969789,34.11184631,146.09,146.06,0.033]
[1741360970297,21.28372099,146.1,146.06,0.033]
[1741360970298,54.11184631,146.1,146.06,0.033]
[1741360970484,20.0,146.1,146.06,0.033]
[1741360970684,35.39561954,146.09,146.06,0.033]
[1741360970996,20.0,146.1,146.06,0.17516157]
[1741360971184,20.0,146.1,146.06,34.28700788]
[1741360971982,82.1,146.18,146.1,0.14216157]
[1741360972205,182.25184631,146.17,146.1,0.14216157]
[1741360972491,34.11184631,146.13,146.09,0.14216157]
[1741360972687,1.28361461,146.14,146.09,0.14216157]
[1741360972891,1.28361461,146.15,146.09,0.14216157]
[1741360973073,34.11184631,146.14,146.09,0.14216157]
[1741360973474,35.39531842,146.13,146.08,0.14216157]
[1741360973685,34.11184631,146.12,146.08,0.14216157]
[1741360974200,34.11184631,146.11,146.06,0.17516157]
[1741360974694,34.11184631,146.09,146.06,0.033]
[1741360975199,34.11184631,146.1,146.06,0.033]
[1741360975502,34.11184631,146.08,146.06,0.033]
[1741360975677,34.11184631,146.07,146.06,0.033]
[1741360975884,34.11184631,146.08,146.06,0.033]
[1741360976799,35.39575073,146.09,146.06,0.033]
[1741360976986,182.31184631,146.1,146.06,0.033]
[1741360977186,34.11184631,146.09,146.06,0.033]
[1741360977496,35.39569738,146.09,146.06,0.033]
[1741360977676,182.31184631,146.1,146.06,0.17516157]
[1741360978493,148.2,146.1,146.06,0.033]
[1741360978779,148.2,146.1,146.07,0.14216157]
[1741360979088,182.31184631,146.1,146.06,0.033]
[1741360979698,148.2,146.1,146.06,0.033]
[1741360980003,148.2,146.1,146.07,0.14216157]
[1741360980377,34.11184631,146.09,146.06,0.033]
[1741360980582,34.11184631,146.08,146.06,0.033]
[1741360980891,34.11184631,146.09,146.06,0.033]
[1741360981111,182.31184631,146.1,146.06,0.033]
[1741360981295,148.2,146.1,146.06,0.17516157]
[1741360981483,148.2,146.1,146.06,34.28700788]
[1741360981804,0.03,146.12,146.1,3.22806157]
[1741360981984,0.03,146.12,146.11,34.25400788]
[1741360982179,148.22,146.19,146.12,0.42648471]
[1741360982381,148.22,146.19,146.18,0.14216157]
[1741360983190,0.03,146.22,146.19,0.14216157]
[1741360983609,34.14184631,146.22,146.18,0.14216157]
[1741360983793,0.03,146.22,146.18,0.14216157]
[1741360984209,0.03,146.22,146.18,34.25400788]
[1741360984403,0.03,146.22,146.18,0.14216157]
[1741360984703,0.03,146.22,146.21,0.14216157]
[1741360985307,0.03,146.22,146.19,34.25400788]
[1741360985522,0.03,146.22,146.19,0.14216157]
[1741360985815,0.03,146.22,146.2,34.25400788]
[1741360986182,0.03,146.22,146.21,34.25400788]
[1741360987387,0.03,146.22,146.21,41.09340788]
[1741360987703,0.03,146.22,146.21,0.14216157]
[1741360988027,0.03,146.22,146.21,353.37773102]
[1741360988214,0.03,146.22,146.21,387.48957733]
[1741360988521,148.22,146.28,146.22,0.42648471]
[1741360988723,148.22,146.28,146.26,0.14216157]
[1741360989026,148.22,146.28,146.26,34.25400788]
[1741360989212,6.2142,146.35,146.28,0.14216157]
[1741360989384,9.15,146.34,146.3,0.14216157]
[1741360989991,0.03,146.34,146.31,0.14216157]
[1741360990193,0.03,146.34,146.33,34.25400788]
[1741360990395,0.03,146.34,146.33,0.14216157]
[1741360990619,34.14184631,146.34,146.33,0.14216157]
[1741360990785,0.03,146.34,146.33,0.14216157]
[1741360990995,34.14184631,146.34,146.33,0.14216157]
[1741360991434,0.03,146.34,146.33,0.14216157]
[1741360994029,20.03,146.34,146.33,0.14216157]
[1741360994340,0.03,146.34,146.29,34.11184631]
[1741360994499,0.03,146.34,146.32,34.25400788]
[1741360994702,0.03,146.34,146.33,34.25400788]
[1741360995024,0.03,146.34,146.33,0.14216157]
[1741360995197,0.03,146.34,146.31,0.14216157]
[1741360995393,0.03,146.34,146.31,34.25400788]
[1741360995716,0.03,146.34,146.33,0.14216157]
[1741360996096,0.03,146.34,146.3,34.11184631]
[1741360996302,0.03,146.34,146.31,34.11184631]
[1741360996517,0.03,146.34,146.32,34.25400788]
[1741360997037,0.03,146.34,146.32,0.14216157]
[1741360997219,0.03,146.34,146.33,0.14216157]
[1741360997601,0.03,146.34,146.33,34.25400788]
[1741360997901,0.03,146.34,146.32,34.25400788]
[1741360998419,0.03,146.34,146.29,34.11184631]
[1741360998621,34.11184631,146.32,146.24,9.82914235]
[1741360998809,9.13,146.34,146.24,9.82914235]
[1741360998810,34.11184631,146.31,146.25,34.11184631]
[1741360999003,10.41179783,146.34,146.24,16.66714235]
[1741360999212,34.11184631,146.33,146.27,34.11184631]
[1741360999401,34.11184631,146.33,146.28,0.14216157]
[1741360999896,43.24184631,146.34,146.29,0.14216157]
[1741361000098,34.11184631,146.32,146.29,0.14216157]
[1741361000317,9.13,146.34,146.29,0.14216157]
[1741361000318,34.11184631,146.33,146.29,0.14216157]
[1741361000519,34.11184631,146.31,146.26,34.11184631]
[1741361000719,34.11184631,146.3,146.24,3.40934235]
[1741361000909,34.11184631,146.3,146.26,0.14216157]
[1741361001432,34.11184631,146.27,146.22,34.11184631]
[1741361001627,34.11184631,146.26,146.21,34.11184631]
[1741361001827,9.1,146.28,146.16,40.26974631]
[1741361001828,34.11184631,146.24,146.16,9.4479]
[1741361002001,34.11184631,146.24,146.19,34.11184631]
[1741361002328,34.11184631,146.25,146.2,34.25400788]
[1741361002535,20.0,146.23,146.2,34.11184631]
[1741361002695,34.11184631,146.22,146.16,3.29]
[1741361002894,34.11184631,146.22,146.17,34.25400788]
[1741361003115,20.0,146.23,146.16,10.1317]
[1741361003318,20.0,146.23,146.18,34.11184631]
[1741361003531,7.41698569,146.26,146.2,34.11184631]
[1741361003818,34.11184631,146.24,146.16,3.29]
[1741361004018,34.11184631,146.25,146.19,34.11184631]
[1741361004227,54.11184631,146.24,146.2,0.14216157]
[1741361004396,34.11184631,146.23,146.2,0.14216157]
[1741361004596,20.0,146.24,146.17,34.11184631]
[1741361004822,54.11184631,146.24,146.19,0.14216157]
[1741361006103,20.0,146.24,146.2,34.25400788]
[1741361006302,34.11184631,146.26,146.22,0.14216157]
[1741361006498,43.21184631,146.27,146.22,0.14216157]
[1741361006709,9.1,146.27,146.25,0.14216157]
[1741361007303,9.1,146.27,146.23,34.11184631]
[1741361007304,43.21184631,146.27,146.23,0.14216157]
[1741361007500,34.11184631,146.25,146.23,0.14216157]
[1741361007821,9.1,146.27,146.22,0.14216157]
[1741361007822,43.21184631,146.27,146.22,0.14216157]
[1741361008013,9.1,146.27,146.23,0.14216157]
[1741361008519,9.1,146.27,146.23,34.11184631]
[1741361008725,9.1,146.27,146.24,0.14216157]
[1741361010321,34.11184631,146.29,146.23,34.25400788]
[1741361010628,43.21184631,146.31,146.26,34.25400788]
[1741361010830,43.21184631,146.31,146.26,0.14216157]
[1741361011333,43.21184631,146.31,146.27,0.14216157]
[1741361011817,34.11184631,146.3,146.27,0.14216157]
[1741361012018,34.11184631,146.29,146.25,0.14216157]
[1741361012225,20.0,146.28,146.25,34.25400788]
[1741361012724,9.1,146.31,146.27,0.14216157]
[1741361012725,20.0,146.29,146.27,0.14216157]
[1741361012926,20.0,146.28,146.27,0.14216157]
[1741361013334,20.0,146.28,146.25,0.14216157]
[1741361013711,20.0,146.28,146.24,0.14216157]
[1741361014233,34.11184631,146.28,146.24,0.14216157]
[1741361014415,34.11184631,146.28,146.23,0.14216157]
[1741361015019,34.11184631,146.3,146.24,34.25400788]
[1741361015329,20.0,146.28,146.26,0.14216157]
[1741361015635,35.39375644,146.31,146.25,34.11184631]
[1741361015829,35.39375644,146.31,146.23,0.28432314]
[1741361015830,34.11184631,146.31,146.26,34.25400788]
[1741361016411,34.11184631,146.31,146.26,0.14216157]
[1741361016923,34.11184631,146.31,146.26,34.25400788]
[1741361017128,0.03,146.34,146.28,34.11184631]
[1741361017325,0.03,146.34,146.31,0.14216157]
[1741361017517,0.03,146.34,146.31,34.25400788]
[1741361018034,0.03,146.34,146.31,0.14216157]
[1741361018647,0.03,146.34,146.32,0.14216157]
[1741361019210,0.03,146.34,146.32,34.25400788]
[1741361019418,20.03,146.34,146.33,0.14216157]
[1741361020134,20.03,146.34,146.33,34.25400788]
[1741361020135,0.03,146.34,146.33,34.25400788]
[1741361021177,0.03,146.34,146.33,37.80073102]
[1741361021824,0.03,146.34,146.33,63.28417988]
[1741361022555,0.03,146.37,146.34,19.07613357]
[1741361022759,0.03,146.37,146.36,34.53833102]
[1741361023861,0.03,146.37,146.36,353.37073102]
[1741361024354,0.03,146.39,146.38,39.07613357]
[1741361024561,0.03,146.41,146.4,34.53833102]
[1741361024758,0.03,146.41,146.4,34.25400788]
[1741361024961,0.03,146.41,146.4,0.14216157]
[1741361025438,0.03,146.41,146.4,34.25400788]
[1741361025641,0.03,146.41,146.4,34.53833102]
[1741361025849,0.03,146.41,146.4,60.01857988]
[1741361026356,0.03,146.41,146.4,63.06177988]
[1741361026554,0.03,146.45,146.41,19.07613357]
[1741361026857,0.03,146.45,146.44,87.29982619]
[1741361027060,0.03,146.46,146.45,6.46938471]
[1741361027261,0.03,146.52,146.5,18.79181043]
[1741361027557,34.11184631,146.62,146.53,20.42648471]
[1741361027758,34.11184631,146.62,146.53,54.53833102]
[1741361027942,54.11184631,146.61,146.53,34.53833102]
[1741361028138,20.0,146.61,146.53,34.25400788]
[1741361028345,34.11184631,146.62,146.53,41.36283102]
[1741361028545,34.11184631,146.63,146.53,60.01247988]
[1741361028861,6.4585,146.64,146.53,60.01247988]
[1741361029039,40.57034631,146.64,146.53,60.01247988]
[1741361029642,40.57034631,146.64,146.53,195.21247988]
[1741361030362,34.11184631,146.63,146.53,195.21247988]
[1741361030958,20.0,146.62,146.54,0.42648471]
[1741361031266,20.0,146.63,146.61,0.14216157]
[1741361031454,34.11184631,146.67,146.61,34.25400788]